bitfinex-derivatives/quotes_SOLF0:USTF0_20251024
["timestamp","ask_amount","ask_price","bid_price","bid_amount"]
[1761311145212,8.64999713,193.97,193.89,2.85]
[1761311145415,8.64999713,193.96,193.89,2.85]
[1761311145618,3.93405063,193.95,193.91,2.85]
[1761311145818,4.71560179,193.97,193.91,2.85]
[1761311146115,8.64957308,193.96,193.91,2.85]
[1761311146313,3.93397129,193.95,193.91,2.85]
[1761311146514,9.48705068,193.99,193.91,2.85]
[1761311146718,8.65206253,193.98,193.91,2.85]
[1761311146915,8.65206253,193.97,193.91,2.85]
[1761311147107,8.65206253,193.96,193.91,2.85]
[1761311147308,3.93502905,193.95,193.91,2.85]
[1761311147614,4.7182739,193.99,193.91,2.85]
[1761311147816,8.6543634,193.98,193.91,2.85]
[1761311148017,8.6543634,193.97,193.91,2.85]
[1761311148217,3.9360895,193.96,193.91,2.85]
[1761311148418,3.9360895,193.95,193.91,2.85]
[1761311148615,48.7100172,194.0,193.82,2.85]
[1761311148616,4.25460705,193.97,193.82,2.85]
[1761311148821,8.58727854,193.96,193.82,2.85]
[1761311149033,8.58727854,193.95,193.82,2.85]
[1761311149217,3.93729865,193.94,193.82,2.85]
[1761311149420,8.1919057,193.93,193.82,2.85]
[1761311149625,8.58998908,193.92,193.82,2.85]
[1761311149822,3.93729865,193.91,193.82,2.85]
[1761311150127,3.93729865,193.9,193.82,2.85]
[1761311150430,3.93729865,193.89,193.82,2.85]
[1761311150616,4.65269043,193.92,193.82,2.85]
[1761311150822,3.93900249,193.91,193.82,2.85]
[1761311151122,3.93900249,193.9,193.82,2.85]
[1761311151430,8.19360954,193.89,193.79,4.6433]
[1761311151630,3.93900249,193.88,193.79,4.6433]
[1761311151829,3.93900249,193.87,193.79,4.6433]
[1761311152031,3.93900249,193.86,193.79,4.6433]
[1761311152221,4.25460705,193.89,193.79,4.6433]
[1761311152423,3.93769598,193.88,193.79,7.4933]
[1761311152623,3.93769598,193.87,193.8,2.85]
[1761311152823,4.25460705,193.89,193.8,2.85]
[1761311153122,3.93757317,193.88,193.8,2.85]
[1761311153326,3.93757317,193.87,193.8,2.85]
[1761311153530,4.25460705,193.89,193.8,2.85]
[1761311153727,3.93670163,193.88,193.8,2.85]
[1761311154027,3.93670163,193.87,193.8,2.85]
[1761311154231,4.25460705,193.89,193.8,2.85]
[1761311154533,3.93643505,193.88,193.8,2.85]
[1761311154732,3.93643505,193.87,193.8,2.85]
[1761311155032,3.93643505,193.88,193.8,7.4931]
[1761311155329,3.9356571,193.88,193.81,2.85]
[1761311155529,8.5840651,193.9,193.81,2.85]
[1761311155731,3.9356571,193.89,193.81,2.85]
[1761311155929,3.9356571,193.88,193.81,2.85]
[1761311156131,3.9356571,193.89,193.81,2.85]
[1761311156329,3.9356571,193.88,193.81,2.85]
[1761311156523,8.5837414,193.9,193.8,4.6431]
[1761311156728,3.9356571,193.89,193.8,4.6431]
[1761311156933,3.9356571,193.88,193.8,4.6431]
[1761311157127,3.9356571,193.89,193.8,4.6431]
[1761311157326,3.9356571,193.88,193.8,4.6431]
[1761311157526,3.9356571,193.89,193.8,4.6431]
[1761311157733,3.9356571,193.88,193.8,4.6431]
[1761311157928,3.9356571,193.89,193.8,4.6431]
[1761311158232,3.9356571,193.88,193.8,4.6431]
[1761311158433,3.9356571,193.89,193.81,2.64]
[1761311158633,3.9356571,193.88,193.81,2.64]
[1761311158830,3.9356571,193.89,193.81,2.64]
[1761311159135,3.9356571,193.88,193.81,2.64]
[1761311159336,3.9356571,193.89,193.81,2.64]
[1761311159529,3.9356571,193.88,193.81,2.64]
[1761311159729,3.9356571,193.89,193.81,2.64]
[1761311159931,3.9356571,193.88,193.81,2.64]
[1761311160230,3.9356571,193.89,193.81,2.64]
[1761311160426,3.9356571,193.88,193.81,2.64]
[1761311160627,3.9356571,193.89,193.81,7.2828]
[1761311160828,3.9356571,193.88,193.81,7.2828]
[1761311161027,3.9356571,193.89,193.81,7.2828]
[1761311161322,3.9356571,193.88,193.81,7.2828]
[1761311161521,4.6489963,193.9,193.81,7.2828]
[1761311161728,3.93816586,193.89,193.81,7.2828]
[1761311161929,3.93816586,193.88,193.81,7.2828]
[1761311162130,4.6489963,193.9,193.81,7.2828]
[1761311162323,3.93816572,193.89,193.81,7.2828]
[1761311162529,3.93816572,193.88,193.81,7.2828]
[1761311162728,1.70344863,193.84,193.81,7.2828]
[1761311163528,1.70344863,193.84,193.81,7.3428]
[1761311164325,1.70344863,193.84,193.82,2.7]
[1761311165031,1.70344863,193.84,193.75,2.7]
[1761311165226,28.0,193.92,193.75,2.7]
[1761311165227,1.70344863,193.82,193.75,2.7]
[1761311165429,1.70344863,193.8,193.75,2.7]
[1761311166039,1.70344863,193.78,193.7,2.7]
[1761311166239,1.70344863,193.76,193.7,2.7]
[1761311166439,3.95359291,193.75,193.7,2.7]
[1761311166634,3.95359291,193.74,193.7,2.7]
[1761311166829,1.70344863,193.76,193.7,2.7]
[1761311167034,1.70344863,193.74,193.7,2.7]
[1761311167237,1.70344863,193.75,193.7,2.7]
[1761311167433,3.95689401,193.74,193.7,2.7]
[1761311167632,1.70344863,193.75,193.7,2.7]
[1761311167937,3.95413747,193.74,193.7,2.7]
[1761311168138,1.70344863,193.75,193.7,2.7]
[1761311168341,3.95413747,193.74,193.7,2.7]
[1761311168635,1.70344863,193.75,193.7,2.7]
[1761311168840,3.95278425,193.74,193.7,2.7]
[1761311169041,4.63024058,193.77,193.7,2.7]
[1761311169244,8.58060052,193.76,193.7,2.7]
[1761311169534,3.95278425,193.75,193.7,2.7]
[1761311169738,3.95278425,193.74,193.7,2.7]
[1761311169937,3.95278425,193.73,193.66,2.7]
[1761311170139,13.66211537,193.75,193.6,2.7]
[1761311170140,8.58198686,193.72,193.6,2.7]
[1761311170331,3.95278425,193.71,193.6,2.7]
[1761311170534,3.95278425,193.7,193.6,2.7]
[1761311170832,3.95278425,193.69,193.64,2.7]
[1761311171032,4.7700172,193.73,193.64,2.7]
[1761311171238,8.57777441,193.72,193.64,2.7]
[1761311171541,8.57777441,193.71,193.64,2.7]
[1761311171736,3.95015065,193.7,193.64,2.7]
[1761311171942,3.95015065,193.69,193.64,2.7]
[1761311172236,3.95015065,193.68,193.64,2.7]
[1761311172442,4.6253324,193.71,193.64,2.7]
[1761311172644,3.94673967,193.7,193.64,2.7]
[1761311172941,3.94673967,193.69,193.64,2.7]
[1761311173140,3.94673967,193.68,193.64,2.7]
[1761311173339,4.7700172,193.73,193.64,2.7]
[1761311173542,8.5641514,193.72,193.64,2.7]
[1761311173742,3.94400161,193.71,193.64,2.7]
[1761311173944,3.94400161,193.7,193.64,2.7]
[1761311174142,3.94400161,193.69,193.64,2.7]
[1761311174343,4.7700172,193.74,193.64,2.7]
[1761311174547,17.59286795,193.73,193.64,2.7]
[1761311174741,8.55995519,193.72,193.64,2.7]
[1761311175038,8.55995519,193.71,193.64,2.7]
[1761311175241,3.9420775,193.7,193.64,2.7]
[1761311175444,3.9420775,193.69,193.64,2.7]
[1761311175743,3.9420775,193.68,193.64,2.7]
[1761311175945,4.61787769,193.71,193.64,2.7]
[1761311176150,3.94672986,193.7,193.64,2.7]
[1761311176342,3.94672986,193.69,193.64,2.7]
[1761311176543,3.94672986,193.68,193.64,2.7]
[1761311176742,4.61364724,193.72,193.64,2.7]
[1761311176946,3.94459769,193.71,193.64,2.7]
[1761311177147,4.61364724,193.72,193.64,2.7]
[1761311177148,3.94459769,193.7,193.64,2.7]
[1761311177347,3.94459769,193.69,193.64,2.7]
[1761311177549,3.94459769,193.71,193.64,2.7]
[1761311177737,4.61124599,193.74,193.64,2.7]
[1761311177937,3.94266899,193.73,193.64,2.7]
[1761311178140,3.94266899,193.72,193.68,2.7]
[1761311178345,3.94266899,193.71,193.68,2.7]
[1761311178550,4.7700172,193.76,193.68,2.7]
[1761311178745,3.94195974,193.75,193.68,2.7]
[1761311178941,3.94195974,193.74,193.68,2.7]
[1761311179142,3.94195974,193.73,193.68,2.7]
[1761311179446,3.94195974,193.72,193.68,2.7]
[1761311179645,3.94159134,193.71,193.68,2.7]
[1761311179846,4.7700172,193.76,193.68,2.7]
[1761311180046,3.9415917,193.75,193.68,2.7]
[1761311180246,3.9415917,193.74,193.68,2.7]
[1761311180452,3.9415917,193.73,193.68,2.7]
[1761311180653,3.9415917,193.72,193.68,2.7]
[1761311180852,3.9415917,193.76,193.68,2.7]
[1761311181153,3.9415917,193.75,193.68,2.7]
[1761311181348,3.9415917,193.74,193.68,2.7]
[1761311181552,3.9415917,193.73,193.68,2.7]
[1761311181849,3.9415917,193.76,193.68,2.7]
[1761311182058,4.26289556,193.77,193.68,2.7]
[1761311182246,4.7700172,193.8,193.68,2.7]
[1761311182247,3.93949441,193.76,193.68,2.7]
[1761311182553,3.93949441,193.79,193.68,2.7]
[1761311182746,3.93949441,193.78,193.68,2.7]
[1761311182945,3.93949441,193.79,193.68,2.7]
[1761311183152,3.93949441,193.78,193.68,2.7]
[1761311183353,3.93949441,193.79,193.69,2.7]
[1761311183651,3.93949441,193.78,193.69,2.7]
[1761311183849,3.93949441,193.77,193.69,2.7]
[1761311184157,3.93949441,193.79,193.69,2.7]
[1761311184355,3.93949441,193.78,193.69,2.7]
[1761311184553,3.93949441,193.79,193.69,2.7]
[1761311184754,3.93949441,193.78,193.69,2.7]
[1761311184950,3.93949441,193.77,193.7,4.6455]
[1761311185253,3.93949441,193.79,193.7,7.3455]
[1761311185454,3.93949441,193.78,193.7,7.3455]
[1761311185654,3.93949441,193.79,193.7,7.3455]
[1761311185856,3.93949441,193.78,193.71,2.7]
[1761311186056,4.26289556,193.8,193.71,2.7]
[1761311186057,3.93949441,193.79,193.71,2.7]
[1761311186251,3.93949441,193.78,193.71,2.7]
[1761311186559,3.93949441,193.79,193.71,2.7]
[1761311186751,3.93949441,193.78,193.71,2.7]
[1761311187058,3.93949441,193.79,193.71,2.7]
[1761311187259,3.93949441,193.79,193.62,62.0]
[1761311187260,3.93949441,193.79,193.73,2.7]
[1761311187655,3.93949441,193.79,193.64,4.26289556]
[1761311187855,3.93949441,193.78,193.68,2.7]
[1761311188057,3.93949441,193.79,193.68,2.7]
[1761311188362,3.93949441,193.79,193.7,2.7]
[1761311189257,3.93949441,193.78,193.71,7.3453]
[1761311189456,3.93949441,193.79,193.71,7.3453]
[1761311189656,3.93949441,193.78,193.59,45.84289556]
[1761311189857,3.93949441,193.79,193.73,2.84]
[1761311190055,8.20238997,193.8,193.73,2.84]
[1761311190457,3.93949441,193.79,193.73,2.84]
[1761311190870,3.93949441,193.8,193.74,2.84]
[1761311191069,1.70452221,193.77,193.74,2.84]
[1761311191369,1.70452221,193.77,193.75,2.84]
[1761311192757,2.66332898,193.79,193.75,2.84]
[1761311193360,2.66332898,193.79,193.76,2.84]
[1761311194267,2.66332898,193.79,193.77,2.84]
[1761311195476,2.66332898,193.79,193.66,2.84]
[1761311195677,3.95445187,193.78,193.66,2.84]
[1761311195874,2.66332898,193.79,193.66,2.84]
[1761311196075,3.95448434,193.78,193.66,2.84]
[1761311196277,2.66332898,193.79,193.71,7.4853]
[1761311196478,3.9556167,193.78,193.71,7.4853]
[1761311196676,2.66332898,193.79,193.71,7.4853]
[1761311196677,3.9556167,193.77,193.71,7.4853]
[1761311196977,2.66332898,193.79,193.71,7.4853]
[1761311197176,3.95565602,193.78,193.72,4.645]
[1761311197475,3.95565602,193.77,193.73,2.84]
[1761311197675,2.66332898,193.79,193.73,2.84]
[1761311197875,3.95643389,193.78,193.73,2.84]
[1761311198077,3.95643389,193.77,193.73,2.84]
[1761311198275,2.66332898,193.79,193.73,2.84]
[1761311198475,3.9572762,193.78,193.73,2.84]
[1761311198670,2.66332898,193.79,193.73,2.84]
[1761311198877,3.9572148,193.78,193.73,2.84]
[1761311199071,2.66332898,193.79,193.73,2.84]
[1761311199372,3.95721458,193.78,193.73,2.84]
[1761311199572,3.95721458,193.77,193.73,2.84]
[1761311199768,2.66332898,193.78,193.73,2.84]
[1761311199970,3.95819964,193.77,193.73,2.84]
[1761311200176,2.66332898,193.78,193.73,2.84]
[1761311200378,3.95819964,193.77,193.73,2.84]
[1761311200582,2.66332898,193.81,193.67,2.84]
[1761311200785,3.9593356,193.8,193.67,2.84]
[1761311200986,3.9593356,193.79,193.67,2.84]
[1761311201174,2.66332898,193.81,193.69,2.84]
[1761311201374,3.95901016,193.8,193.69,2.84]
[1761311201579,2.66332898,193.81,193.69,2.84]
[1761311201880,3.9599401,193.8,193.69,2.84]
[1761311202080,2.66332898,193.81,193.77,2.84]
[1761311202282,3.95987962,193.8,193.77,2.84]
[1761311202482,2.66332898,193.81,193.77,2.84]
[1761311202682,3.96088482,193.8,193.77,2.84]
[1761311202883,2.66332898,193.81,193.77,2.84]
[1761311203083,3.96088474,193.8,193.77,2.84]
[1761311203289,2.66332898,193.81,193.77,2.84]
[1761311203488,3.96194035,193.8,193.77,2.84]
[1761311203680,2.66332898,193.81,193.77,2.84]
[1761311203880,3.96194012,193.8,193.77,2.84]
[1761311204187,2.66332898,193.81,193.74,4.6445]
[1761311204488,3.96218749,193.8,193.74,7.4845]
[1761311204792,3.96218749,193.79,193.75,2.84]
[1761311205089,2.66332898,193.81,193.75,2.84]
[1761311205289,3.92761103,193.8,193.75,2.84]
[1761311205591,2.66332898,193.81,193.75,2.84]
[1761311205792,3.9277919,193.8,193.75,2.84]
[1761311205991,2.66332898,193.81,193.75,2.84]
[1761311206192,3.92775231,193.8,193.75,2.84]
[1761311206395,2.66332898,193.81,193.75,2.84]
[1761311206591,3.92892796,193.8,193.75,2.84]
[1761311206790,2.66332898,193.81,193.75,7.4843]
[1761311207089,3.92892818,193.8,193.76,2.84]
[1761311207285,2.66332898,193.81,193.76,2.84]
[1761311212195,4.53876147,193.84,193.76,4.6441]
[1761311212390,2.66332898,193.8,193.74,2.84]
[1761311212700,2.66332898,193.77,193.66,2.84]
[1761311213199,2.66332898,193.77,193.72,2.84]
[1761311213796,2.66332898,193.77,193.73,2.84]
[1761311219503,4.53876147,193.8,193.73,2.84]
[1761311219702,2.66332898,193.78,193.73,2.84]
[1761311219895,3.93681858,193.77,193.73,2.84]
[1761311220095,2.66332898,193.78,193.73,2.84]
[1761311220405,3.93669646,193.77,193.73,2.84]
[1761311220602,2.66332898,193.78,193.73,2.84]
[1761311220805,3.9379547,193.77,193.73,2.84]
[1761311221007,2.66332898,193.78,193.73,2.84]
[1761311221202,3.93789362,193.77,193.73,4.6448]
[1761311221408,2.66332898,193.81,193.74,2.63]
[1761311221607,3.93926054,193.8,193.74,2.63]
[1761311221910,3.93926054,193.79,193.74,2.63]
[1761311222103,3.93926054,193.78,193.74,2.63]
[1761311222303,7.25056113,193.81,193.74,2.63]
[1761311222505,3.94112158,193.8,193.74,2.63]
[1761311222804,3.94112158,193.79,193.75,2.63]
[1761311223009,3.94112158,193.78,193.75,2.63]
[1761311223205,3.94112158,193.77,193.75,2.63]
[1761311223507,7.4626362,193.81,193.75,2.63]
[1761311223707,8.52886472,193.8,193.75,2.63]
[1761311223906,3.93793961,193.79,193.66,11.95612898]
[1761311224103,6.60126859,193.78,193.67,2.63]
[1761311224303,3.93793961,193.77,193.67,2.63]
[1761311224510,3.93793961,193.76,193.67,2.63]
[1761311224812,3.93793961,193.75,193.67,2.63]
[1761311225008,2.66332898,193.78,193.67,2.63]
[1761311225313,3.93951824,193.77,193.67,2.63]
[1761311225513,3.93951824,193.76,193.72,2.63]
[1761311225709,3.93951824,193.75,193.72,2.63]
[1761311225915,3.93951824,193.74,193.72,2.63]
[1761311226210,4.59459928,193.77,193.72,2.63]
[1761311226518,3.94273926,193.76,193.72,2.63]
[1761311226709,3.94273926,193.75,193.72,2.63]
[1761311226908,3.94273926,193.74,193.72,2.63]
[1761311227108,4.59647449,193.77,193.72,2.63]
[1761311227308,3.94273949,193.76,193.72,2.63]
[1761311227505,3.94273949,193.75,193.72,4.6451]
[1761311227711,3.94273949,193.74,193.73,2.63]
[1761311230819,3.97287646,193.74,193.73,2.63]
[1761311232018,4.82458128,193.78,193.73,1.04]
[1761311232217,4.59808411,193.8,193.74,2.63]
[1761311232413,4.59808411,193.79,193.74,2.63]
[1761311232614,7.48791026,193.81,193.74,2.63]
[1761311232927,2.66332898,193.78,193.66,2.63]
[1761311233107,2.66332898,193.78,193.72,4.6451]
[1761311233418,4.59919423,193.77,193.72,4.6451]
[1761311233619,7.48791026,193.78,193.73,2.63]
[1761311233913,4.59945275,193.77,193.73,2.63]
[1761311234117,7.48791026,193.78,193.69,2.63]
[1761311234314,4.59963346,193.77,193.69,2.63]
[1761311234518,7.48791026,193.78,193.69,2.63]
[1761311234820,4.5999263,193.77,193.69,2.63]
[1761311235011,7.48791026,193.78,193.71,7.2753]
[1761311235213,4.5999263,193.77,193.71,2.63]
[1761311235519,7.48981219,193.78,193.71,2.63]
[1761311235716,4.59988909,193.77,193.71,2.63]
[1761311236022,7.48981219,193.78,193.72,4.645]
[1761311236213,4.59988942,193.77,193.72,7.275]
[1761311236414,7.48981219,193.78,193.72,7.275]
[1761311236718,4.59974465,193.77,193.72,7.275]
[1761311236920,7.48981219,193.78,193.73,2.63]
[1761311237119,4.59974465,193.77,193.73,2.63]
[1761311237318,7.48981219,193.78,193.73,2.63]
[1761311237621,4.59964952,193.77,193.73,2.63]
[1761311237817,7.48981219,193.78,193.73,2.63]
[1761311238018,4.5996498,193.77,193.73,2.63]
[1761311238218,7.48981219,193.78,193.73,2.63]
[1761311238420,4.59957358,193.77,193.73,2.63]
[1761311238614,7.48981219,193.78,193.73,2.63]
[1761311238814,4.55962571,193.77,193.73,2.63]
[1761311239013,7.48981219,193.78,193.73,2.63]
[1761311239214,4.55962572,193.77,193.73,2.63]
[1761311239416,7.48981219,193.78,193.73,2.63]
[1761311239616,4.55965406,193.77,193.73,2.63]
[1761311239816,7.48981219,193.78,193.73,2.63]
[1761311240020,4.55965373,193.77,193.73,2.63]
[1761311240216,7.48981219,193.78,193.73,2.63]
[1761311240422,4.55971777,193.77,193.73,2.63]
[1761311240622,7.48981219,193.78,193.73,2.63]
[1761311240825,4.55971777,193.77,193.73,2.63]
[1761311241026,7.48981219,193.78,193.73,2.63]
[1761311241223,4.55971744,193.77,193.73,2.63]
[1761311241419,7.48981219,193.78,193.73,2.63]
[1761311241619,4.55963867,193.77,193.73,2.63]
[1761311241820,7.48981219,193.78,193.73,2.63]
[1761311242020,4.55963867,193.77,193.73,2.63]
[1761311242222,4.82648321,193.78,193.73,2.63]
[1761311242420,4.55961267,193.77,193.73,2.63]
[1761311242626,4.82648321,193.78,193.73,2.63]
[1761311242827,4.55961267,193.77,193.73,2.63]
[1761311243129,4.82648321,193.78,193.73,2.63]
[1761311243316,4.55961319,193.77,193.73,2.63]
[1761311243519,4.82648321,193.78,193.73,2.63]
[1761311243719,4.55956163,193.77,193.73,2.63]
[1761311245128,3.94061316,193.77,193.75,2.63]
[1761311245428,3.94061316,193.76,193.75,2.63]
[1761311247129,4.55854959,193.82,193.76,2.63]
[1761311247334,9.06082063,193.86,193.76,2.63]
[1761311247529,4.55771525,193.85,193.76,2.63]
[1761311247729,111.37049106,193.89,193.8,2.63]
[1761311247929,7.22001618,193.88,193.8,2.63]
[1761311248227,4.5566872,193.87,193.8,2.63]
[1761311248430,104.97299941,193.89,193.83,4.6424]
[1761311248627,4.55351409,193.88,193.84,2.63]
[1761311248824,2.66332898,193.9,193.84,2.63]
[1761311249028,4.55355933,193.89,193.84,2.63]
[1761311249232,2.66332898,193.9,193.84,2.63]
[1761311249434,4.55066772,193.89,193.84,2.63]
[1761311249637,2.66332898,193.9,193.84,2.63]
[1761311249827,4.55069029,193.89,193.84,2.63]
[1761311250029,2.66332898,193.9,193.84,2.63]
[1761311250231,4.55068977,193.89,193.84,2.63]
[1761311250428,4.55068977,193.89,193.83,66.6424]
[1761311250738,4.55068977,193.89,193.83,4.6424]
[1761311250931,4.55068977,193.89,193.84,2.85]
[1761311251332,2.66332898,193.9,193.84,2.85]
[1761311251824,7.21401875,193.9,193.84,2.85]
[1761311252028,2.66332898,193.9,193.84,2.85]
[1761311252234,7.21401875,193.91,193.85,2.85]
[1761311252435,2.66332898,193.91,193.85,2.85]
[1761311253238,2.66332898,193.91,193.87,2.85]
[1761311253537,2.66332898,193.94,193.87,2.85]
[1761311253733,2.66332898,193.94,193.88,2.85]
[1761311254338,2.66332898,193.94,193.91,2.85]
[1761311254541,4.54019797,193.99,193.91,2.85]
[1761311254732,1.70163047,193.94,193.91,2.85]
[1761311254930,1.70163047,193.92,193.87,62.0]
[1761311255132,1.70163047,193.88,193.77,2.85]
[1761311255338,1.70163047,193.84,193.77,2.85]
[1761311255538,1.70163047,193.84,193.75,2.85]
[1761311255937,1.70163047,193.84,193.8,4.6431]
[1761311256235,4.54019797,193.92,193.81,2.85]
[1761311256538,1.70163047,193.85,193.81,2.85]
[1761311256744,4.54019797,193.92,193.81,2.85]
[1761311256939,1.70163047,193.85,193.81,7.4928]
[1761311257140,1.70163047,193.85,193.82,2.85]
[1761311257440,1.70163047,193.86,193.82,2.85]
[1761311257739,1.70163047,193.86,193.83,2.85]
[1761311258037,1.70163047,193.88,193.84,62.0]
[1761311258232,1.70163047,193.88,193.85,2.85]
[1761311259136,1.70163047,193.89,193.85,2.85]
[1761311259540,1.70163047,193.91,193.87,2.85]
[1761311263138,1.70163047,193.89,193.83,2.85]
[1761311263442,1.70163047,193.87,193.83,2.85]
[1761311272349,3.89282661,193.91,193.83,2.85]
[1761311272549,1.70163047,193.88,193.83,2.85]
[1761311273356,1.70163047,193.86,193.83,2.85]
[1761311273647,43.68,193.93,193.8,4.55163047]
[1761311273648,1.70163047,193.9,193.8,4.55163047]
[1761311273853,1.70163047,193.91,193.85,2.85]
[1761311274539,1.70163047,193.91,193.86,2.85]
[1761311276751,1.70163047,193.91,193.87,2.62]
[1761311280451,1.70163047,193.89,193.85,7.3719]
[1761311280653,1.70163047,193.89,193.85,2.73]
[1761311282059,1.70163047,193.88,193.85,2.73]
[1761311285858,1.70163047,193.88,193.86,2.73]
[1761311287354,6.39749165,193.96,193.87,2.73]
[1761311287661,1.70163047,193.92,193.87,2.73]
[1761311288258,1.70163047,193.9,193.87,7.3715]
[1761311288458,1.70163047,193.88,193.82,2.73]
[1761311290063,1.70163047,193.88,193.86,2.73]
[1761311290654,1.70163047,193.89,193.86,2.73]
[1761311291267,3.88482077,193.88,193.86,2.73]
[1761311291457,1.70163047,193.89,193.86,2.73]
[1761311291760,3.88482523,193.88,193.86,2.73]
[1761311291962,1.70163047,193.89,193.86,2.73]
[1761311292153,3.88482523,193.88,193.86,2.73]
[1761311292359,1.70163047,193.89,193.86,2.73]
[1761311292559,3.8870067,193.88,193.85,4.642]
[1761311292866,3.8870067,193.87,193.85,7.372]
[1761311293068,1.70163047,193.87,193.85,7.372]
[1761311293270,3.88750311,193.86,193.85,2.73]
[1761311300455,10.28614585,193.86,193.79,2.73]
[1761311300663,1.70163047,193.83,193.79,2.73]
[1761311300867,8.58451538,193.82,193.79,2.73]
[1761311301067,3.88750311,193.81,193.79,2.73]
[1761311301271,4.69580667,193.83,193.79,2.73]
[1761311301470,3.88105633,193.82,193.79,2.73]
[1761311301768,3.90750405,193.81,193.79,2.73]
[1761311301964,4.69579615,193.83,193.79,2.73]
[1761311302274,1.70163047,193.89,193.81,2.73]
[1761311302464,4.69540493,193.88,193.81,2.73]
[1761311302767,1.70163047,193.9,193.85,2.73]
[1761311302970,4.69439929,193.89,193.85,2.73]
[1761311303265,8.09912212,193.94,193.87,2.73]
[1761311303467,4.6941075,193.93,193.88,2.73]
[1761311303771,4.6941075,193.92,193.88,2.73]
[1761311303972,4.6941075,193.91,193.88,2.73]
[1761311304172,4.82277352,193.93,193.88,2.73]
[1761311304467,4.69342824,193.92,193.88,2.73]
[1761311304676,4.69342824,193.91,193.88,2.73]
[1761311304874,4.82277352,193.93,193.88,2.73]
[1761311305066,4.69343005,193.92,193.88,2.73]
[1761311305267,4.69343005,193.91,193.88,2.73]
[1761311305466,6.52440399,193.94,193.88,2.73]
[1761311305674,4.69339855,193.93,193.88,2.73]
[1761311305872,4.69339855,193.92,193.88,2.73]
[1761311306066,4.69339855,193.91,193.88,2.73]
[1761311306267,4.82277352,193.94,193.88,2.73]
[1761311306474,4.69316049,193.93,193.9,2.73]
[1761311306772,4.69316049,193.92,193.9,2.73]
[1761311306972,4.69316049,193.91,193.9,2.73]
[1761311307774,4.82277352,193.94,193.9,2.73]
[1761311307978,4.69272278,193.93,193.9,2.73]
[1761311308171,4.69272278,193.92,193.9,2.73]
[1761311308371,4.82277352,193.94,193.9,2.73]
[1761311308572,4.69220034,193.93,193.9,2.73]
[1761311308778,4.69220034,193.92,193.9,2.73]
[1761311308967,4.82277352,193.94,193.9,2.73]
[1761311309169,4.69220087,193.93,193.9,2.73]
[1761311309474,4.69220087,193.92,193.9,2.73]
[1761311309677,4.82277352,193.95,193.9,2.73]
[1761311309870,4.69154374,193.94,193.9,2.73]
[1761311310072,4.69154374,193.93,193.9,2.73]
[1761311310277,4.82277352,193.95,193.9,2.73]
[1761311310479,4.69089109,193.94,193.9,2.73]
[1761311310670,4.69089109,193.93,193.9,2.73]
[1761311310867,4.82277352,193.95,193.9,2.73]
[1761311311066,4.6908927,193.94,193.91,2.77]
[1761311311272,4.82277352,193.96,193.92,2.77]
[1761311311473,4.69016816,193.95,193.92,2.77]
[1761311311674,110.44891098,193.99,193.94,2.77]
[1761311311874,4.68957115,193.98,193.94,2.77]
[1761311312074,4.68957115,193.97,193.94,2.77]
[1761311312282,105.62613746,193.99,193.94,2.77]
[1761311312476,4.68754579,193.98,193.94,2.77]
[1761311312691,4.68754579,193.97,193.94,2.77]
[1761311312882,105.62613746,193.99,193.94,2.77]
[1761311313183,6.38917733,193.98,193.94,2.77]
[1761311313482,1.70163047,193.98,193.94,2.77]
[1761311314188,1.70163047,193.96,193.92,2.77]
[1761311314378,3.88146388,193.95,193.92,2.77]